Cogmind - Beta 15 @@@ ROGUE MODE // 2025.08.06 @ 19:41:10 Player: beans Result: Destroyed by S-10 Pest with Light Assault Rifle Performance ------------- Evolutions (0) 0 Regions Visited (2) 400 Robots Destroyed (8) 40 Value Destroyed (101) 101 Prototype IDs (1) 20 Alien Tech Used (0) 0 Bonus (0) 0 TOTAL SCORE: 561 Bonus ------- None Cogmind --------- Core Integrity 0/250 Matter 300/300 Energy 100/100 System Corruption 0% Temperature Cool (0) Movement Core (50) Location -10/Mines Parts ------- > --- POWER (1) -------- (None) > --- PROPULSION (2) --- (None) > --- UTILITY (2) ------ (None) > --- WEAPON (2) ------- (None) > --- INVENTORY (5) ---- Light Ion Engine Huge Storage Unit Decoy Drone Bay (11/16) Peak State ------------ > --- POWER ------------ Light Angular Momentum Engine > --- PROPULSION ------- Carbon-fiber Leg > --- UTILITY ---------- Decoy Drone Bay > --- WEAPON ----------- Beamcaster Light Assault Rifle > --- INVENTORY -------- Light Ion Engine Light Treads Huge Storage Unit [Rating: 28] Favorites ----------- Power Light Angular Momentum Engine Engine Light Angular Momentum Engine Propulsion Carbon-fiber Leg Treads Light Treads Leg Carbon-fiber Leg Utility Core Shielding Device Decoy Drone Bay Storage Huge Storage Unit Protection Core Shielding Weapon Light Assault Rifle Energy Gun Beamcaster Ballistic Gun Light Assault Rifle Build | -11 -10 -10 ------- Run | Yrd Mat Min Slots Evolved . | . . . Power . | . . . Propulsion . | . . . Utility . | . . . Weapon . | . . . Parts Attached 11 | 4 . 7 Power 2 | 1 . 1 Engine 2 | 1 . 1 Core . | . . . Reactor . | . . . Propulsion 3 | 2 . 1 Treads 2 | 2 . . Leg 1 | . . 1 Wheel . | . . . Hover . | . . . Flight . | . . . Utility 4 | . . 4 Device 1 | . . 1 Storage 1 | . . 1 Processor . | . . . Hackware . | . . . Protection 2 | . . 2 Artifact . | . . . Weapon 2 | 1 . 1 Energy Gun 1 | . . 1 Energy Cannon . | . . . Ballistic Gun 1 | 1 . . Ballistic Cannon . | . . . Launcher . | . . . Special Weapon . | . . . Impact Weapon . | . . . Slashing Weapon . | . . . Piercing Weapon . | . . . Special Melee Weapon . | . . . Unidentified Prototypes 1 | . . 1 Parts Lost 5 | . . 5 Power 1 | . . 1 Propulsion 2 | . . 2 Utility . | . . . Weapon 2 | . . 2 Highest Loss Streak 3 | . . 3 To Critical Strikes . | . . . Average Backups 2 | . . 2 Power . | . . . Propulsion . | . . . Utility . | . . . Weapon . | . . . Tool/Special . | . . . Unused Backups 1 | . . 1 Power . | . . . Propulsion 1 | . . 1 Utility . | . . . Weapon . | . . . Tool/Special . | . . . Average Slot Usage (%) 67 | . 57 69 Engine 13 | . 14 13 Treads 7 | . 28 2 Leg 9 | . . 11 Storage 2 | . . 3 Protection 9 | . . 11 Energy Gun 9 | . . 12 Ballistic Gun 13 | . 14 12 Peak Build Rating 28 | 4 4 28 Average Rating 12 | 2 4 15 On Entrance 2 | . 4 4 Naked Turns 3 | . . 3 Heaviest Build 96 | 4 4 96 Greatest Support 40 | 40 40 40 Greatest Overweight (x) 6 | . . 6 Average Overweight (x) . | . . 1 Largest Inventory Capacity 25 | 5 5 25 Average Capacity 8 | 5 5 10 Most Carried 5 | 2 1 5 Average Carried 2 | . . 2 Final Capacity 5 | 5 5 5 Final Carried 4 | . 1 4 Class Distribution -------------------- 100% | Mutant Dominant Class ---------------- Mutant | -10/Materials Mutant | -10/Mines Resources | -11 -10 -10 ----------- Run | Yrd Mat Min Matter Collected 356 | 168 11 177 Remotely . | . . . Salvage Created 160 | . 11 149 Parts 15 | . 1 14 Haulers Intercepted . | . . . Recyclers Shooed . | . . . Parts Field Recycled . | . . . Retrieved Matter . | . . . Parts Self-Destructed . | . . . Prevented . | . . . Kills | -11 -10 -10 ------- Run | Yrd Mat Min Combat Hostiles Destroyed 7 | . 1 6 Guns 7 | . 1 6 Classes Destroyed 3 | . 1 2 Tunneler 1 | . . 1 Swarmer 6 | . 1 5 Grunt 1 | . . 1 Best Kill Streak 3 | . 1 3 Combat Bots Only 3 | . 1 3 Max Kills in Single Turn 1 | . 1 1 Gunslinging . | . . . Exploded . | . . . Melee . | . . . Uniques/NPCs Destroyed . | . . . Combat | -11 -10 -10 -------- Run | Yrd Mat Min Hostile Shots Fired 116 | . 5 111 Missed 31 | . 3 28 Hits 85 | . 2 83 Projectile 85 | . 2 83 Critical Strikes 1 | . . 1 Damage Taken 798 | . 17 781 Core 259 | . 10 249 Absorbed by Shields . | . . . Redirected to Shielding 12 | . . 12 Core Remaining (%) 100 | 100 . . Volleys Fired 37 | . 6 31 Largest 2 | . 1 2 Hottest 95 | . 20 95 Shots Fired 50 | . 6 44 Gun 50 | . 6 44 Cannon . | . . . Launcher . | . . . Special . | . . . Kinetic 35 | . 6 29 Thermal 15 | . . 15 Explosive . | . . . Electromagnetic . | . . . Robot Hit Streak 4 | . 2 4 Robot Miss Streak 5 | . 1 5 Penetration Max . | . . . Secondary Targets 1 | . . 1 Max Gunslinging Chain 1 | . . 1 Shots Hit Robots 27 | . 4 23 Core Hits 12 | . 1 11 Critical Kills 1 | . . 1 Critical Parts Destroyed . | . . . Critical Strikes 1 | . . 1 Destroy 1 | . . 1 Melee Attacks . | . . . Impact . | . . . Slashing . | . . . Piercing . | . . . Sneak Attacks . | . . . Combat Hostiles . | . . . Follow-up Attacks . | . . . Damage Inflicted 324 | . 30 294 Guns 323 | . 30 293 Cannons . | . . . Explosions . | . . . Melee . | . . . Ramming 1 | . . 1 Kinetic 154 | . 30 124 Thermal 169 | . . 169 Explosive . | . . . Electromagnetic . | . . . Impact . | . . . Slashing . | . . . Piercing . | . . . Highest Corruption . | . . . Average Corruption . | . . . Corruption Purged . | . . . Corruption Blocked . | . . . Overload Shots . | . . . Overflow Damage . | . . . Projectiles . | . . . Explosions . | . . . Melee . | . . . Knockbacks . | . . . Impact . | . . . Kinetic . | . . . Secondary . | . . . Self-Inflicted Damage . | . . . Shots . | . . . Rammed 4 | . . 4 Targets Rammed 4 | . . 4 Kicked . | . . . Crushed . | . . . Highest Temperature 441 | . . 441 Average Temperature 179 | . . 179 Received Heat Transfer 186 | . . 186 Effects 6 | . . 6 Energy Bleed 2 | . . 2 Interference 4 | . . 4 Siege Activations . | . . . Martial Activations . | . . . Shielding Activations . | . . . Robots Disrupted . | . . . Combat Hostiles . | . . . Robots Corrupted . | . . . Combat Hostiles . | . . . Parts Fried . | . . . Impact Corruptions . | . . . Robots Melted . | . . . Combat Hostiles . | . . . Parts Melted 1 | . . 1 Heat Transferred 296 | . . 296 Parts Sabotaged . | . . . Parts Stolen . | . . . Parts Stripped . | . . . Power Chain Reactions . | . . . Alert | -11 -10 -10 ------- Run | Yrd Mat Min Maximum Alert Level . | . . . Low Security (%) 100 | 100 100 100 Level 1 . | . . . Level 2 . | . . . Level 3 . | . . . Level 4 . | . . . Level 5 . | . . . High Security . | . . . Max Security . | . . . Peak Influence 71 | . 60 71 Initial 11 | . . 11 Average 12 | . 13 13 Influence Increases 205 | . 60 145 Destroy 0b10 Robot/C 140 | . 20 120 Destroy 0b10 Robot/NC 5 | . . 5 Destroy Leader 30 | . 10 20 Lose Combat Pursuer 30 | . 30 . Influence Decreases 205 | . 30 175 Entered New Map 19 | . . 19 Time Decay 172 | . 30 142 Lost Part 14 | . . 14 Squads Dispatched 1 | . 1 . Investigation . | . . . Extermination . | . . . Reinforcement 1 | . 1 . Assault . | . . . Garrison . | . . . Intercept . | . . . Searches Triggered . | . . . Construction Impeded . | . . . Haulers Reinforced . | . . . Active Scanning Responses . | . . . Cargo Convoy Interrupts . | . . . Stealth | -11 -10 -10 --------- Run | Yrd Mat Min Distress Signals 1 | . 1 . Communications Jammed . | . . . Distress Signals . | . . . Times Spotted 20 | . 7 13 Peak Tracking Total 4 | . 3 4 Tactical Retreats 1 | . 1 . Traps | -11 -10 -10 ------- Run | Yrd Mat Min Traps Triggered . | . . . Indirectly . | . . . Trap Hack Attempts . | . . . Triggered . | . . . Disarmed . | . . . Reprogrammed . | . . . Reused . | . . . Traps Extracted . | . . . Installed . | . . . Triggered . | . . . Machines | -11 -10 -10 ---------- Run | Yrd Mat Min Machines Disabled . | . . . Max in Single Turn . | . . . Machines Repaired . | . . . Machines Dismantled . | . . . Machines Sabotaged . | . . . Overloaded Fab Kills . | . . . Hacking | -11 -10 -10 --------- Run | Yrd Mat Min Machines Accessed 2 | . 1 1 Terminals 1 | . 1 . Fabricators . | . . . Repair Stations . | . . . Recycling Units . | . . . Scanalyzers . | . . . Garrison Access . | . . . Total Hacks 4 | . 3 1 Successful 3 | . 2 1 Failed 1 | . 1 . Catastrophic . | . . . Database Lockouts . | . . . Manual . | . . . Terminals 3 | . 3 . Fabricators . | . . . Repair Stations . | . . . Recycling Units . | . . . Scanalyzers . | . . . Garrison Access . | . . . Terminal Hacks 3 | . 2 1 Record 1 | . 1 . Open Door 1 | . . 1 Alert Level 1 | . 1 . Fabricator Hacks . | . . . Repair Station Hacks . | . . . Recycling Unit Hacks . | . . . Scanalyzer . | . . . Garrison Access Hacks . | . . . Unauthorized Hacks . | . . . Terminals . | . . . Fabricators . | . . . Repair Stations . | . . . Recycling Units . | . . . Scanalyzers . | . . . Garrison Access . | . . . Data Cores Recovered . | . . . Used . | . . . Hacking Detections 1 | . 1 . Full Trace Events 1 | . 1 . Feedback Events . | . . . Feedback Blocked . | . . . Robot Schematics Acquired . | . . . Robots Built . | . . . Authchips . | . . . Time . | . . . Total Robot Build Rating . | . . . Part Schematics Acquired . | . . . Parts Built . | . . . Authchips . | . . . Time . | . . . Total Part Build Rating . | . . . Parts Repaired . | . . . Time . | . . . Parts Recycled . | . . . Recycled Matter . | . . . Retrieved Matter . | . . . Retrieved Components . | . . . Parts Scanalyzed . | . . . Part Schematics Acquired . | . . . Parts Damaged . | . . . Bothacking | -11 -10 -10 ------------ Run | Yrd Mat Min Used RIF Installer . | . . . Robots Hacked . | . . . Non-combat . | . . . Combat . | . . . Robot Hacks Applied . | . . . Relay Couplers Released . | . . . Fabnet Peak Effective % . | . . . Robots Rewired . | . . . Allies Hacked . | . . . Hacks Repelled . | . . . Allies | -11 -10 -10 -------- Run | Yrd Mat Min Total Allies . | . . . Largest Group . | . . . Highest-Rated Group . | . . . Highest-Rated Ally . | . . . Total Orders 1 | . . 1 RETURN 1 | . . 1 Ally Attacks . | . . . Total Damage . | . . . Kills . | . . . Allies Corrupted . | . . . Allies Melted . | . . . Intel | -11 -10 -10 ------- Run | Yrd Mat Min Active Infowar (turns) . | . . . Robot Analysis Total . | . . . Derelict Logs Recovered 2 | . . 2 Drone Launches 18 | . . 18 Drone Recoveries 13 | . . 13 Exploration | -11 -10 -10 ------------- Run | Yrd Mat Min Turns Passed 1209 | 97 218 894 Spaces Moved 507 | 60 128 319 Core 13 | 13 . . Treads 218 | 47 128 43 Legs 276 | . . 276 Wheels . | . . . Hover . | . . . Flight . | . . . Fastest Speed 50 | 50 160 160 Average Speed 203 | 136 160 233 Slowest Speed 540 | 160 160 540 Overloaded Moves . | . . . Propulsion Burnouts . | . . . Robots Hopped . | . . . Potential Cave-ins . | . . . Cave-ins Triggered . | . . . Exploration Rate (%) 35 | 3 28 75 Regions Visited 2 Branch Regions 1 Pre-discovered Areas 1 | . . 1 Known Exits Taken . | . . . Unknown Exits Taken 2 | 1 1 . Scrap Searched 2 | . . 2 Spaces Dug . | . . . Terrain Destroyed . | . . . Melee . | . . . Projectile . | . . . AOE . | . . . Terrain Rammed . | . . . Walls Destroyed . | . . . Machines Disabled . | . . . Actions | -11 -10 -10 --------- Run | Yrd Mat Min Total 642 | 75 137 430 Wait 60 | 8 3 49 Move 505 | 59 127 319 Hop . | . . . Pick Up 14 | 4 1 9 Fast Attach . | . . . Attach 12 | 4 . 8 Detach 2 | . . 2 Swap 2 | . . 2 Drop 6 | . . 6 Fire 37 | . 6 31 Melee . | . . . Ram 2 | . . 2 Kick . | . . . Crush 2 | . . 2 Escape Stasis . | . . . Rewire . | . . . Trap . | . . . Miscellaneous . | . . . Route ------- -11/Scrapyard -10/Materials (discovered 2 exits: [*Mat] / *Min) -10/Mines (discovered 1 exit: [*Mat]) History --------- Turn | Location | Event 4 | -11/Scrapyard | Discovered new exit (range 16) 98 | -11/Scrapyard | Entered Materials 286 | -10/Materials | Discovered new exit (range 14) 297 | -10/Materials | Discovered new exit (range 12) 308 | -10/Materials | Build established: Mutant 316 | -10/Materials | Entered Mines 412 | -10/Mines | Met a Derelict bent on vengeance 749 | -10/Mines | Learned 2 Materials zone layouts 871 | -10/Mines | Found the Drone Emporium 878 | -10/Mines | Found Prototype Device 880 | -10/Mines | Identified Decoy Drone Bay 937 | -10/Mines | Lost 3 allies 1011 | -10/Mines | Learned location of Storage (-8) 1057 | -10/Mines | Discovered new exit (range 16) 1152 | -10/Mines | Core integrity fell below 50% 1165 | -10/Mines | Lost 3 parts (1n2w) 1197 | -10/Mines | Core integrity fell below 20% 1210 | -10/Mines | Destroyed by S-10 Pest with Light Assault Rifle Last Messages --------------- Overheating: System interference. Beamcaster temporarily disabled. Lgt. Assault Rifle temporarily disabled. Overheating: Energy bleed (-21). Destroyed Flight Unit. Carbon-fiber Leg destroyed. Overheating: Energy bleed (-21). Beamcaster destroyed. Dropped Core Shielding. Decoy Drone released from Decoy Drone Bay. Lgt. Assault Rifle destroyed. R-06 Scavenger collects Ion Engine. Slammed into S-10 Pest. >> Lost connection to Decoy Drone. Acquired 16 matter. Critical hit (Burn: +37). Slammed into S-10 Pest. Lgt. Treads destroyed. Slammed into S-10 Pest. Lgt. Angular Momentum Engine destroyed. Map ----- +----------------------------------------------------+ | ##??????????????????## ###?# ####### | | ##???????????????????### ##???# ##""""# | | ##?????#??????????????## #????# #" " | | ## #???????????????## ##????# #" " | | #?????????###????# ##?????# ## # | | #?????????## ????# ####???# ### ## | | #??????????# ???# #??## # X | | ##?????????## ??#### #?## % | | ###??????????? ????# ### | | ##?????????????? ???# | | ????????????""" ??# | | ???????????""" ### #### | | #### ????????? """ #??### | | #???????????# #????#### | | #????????????# ## # ###???????#### | | ##????????????????##### ## #????????????? | | # ##?????????????????????###?# #????????????? | | ?#######?????????????????????###### #????????????? | | ?????????????????????????????# #????????????? | | ?##??????????????????????????# ######????????????? | | ? ##?????????????????????????# ##????????????????? | | ? ##???????????????????????##t #????????????????? | | ? ##?????????????????????## ##????????????????? | | ? #???????????????????### ##?????????????????? | | # #????????????######## ##?????????????????? | | # #?????????????# sgs%%@ r #?????????????????? | | # #???????# "????# #####s """ #?????????????????? | | #???????# """??# #???# """ #???##########